{"text_format":"3","workbook":"xlsx","n_sheets":6,"sheets":["Dashboard","Umsatz","Einkünfte","Ausgaben","Steuern","Kategorien"],"not_rendered":{"images":1,"defined_names":34},"read":"whole","date_system":"1900"}

{"sheet":"Dashboard","index":0,"n_rows":19,"n_cols":13,"rows_kept":19,"merged":[[0,2,0,4],[0,6,3,7],[4,1,4,7]]}
[null,"Gewinn- und Verlustrechnung","Für [Monat oder Jahr] mit Ende am [Tag.Monat.Jahr]"]
[null,"Firmenname","Angabe in Tausendern"]
[null,"Aktuelle Bruttogewinnspanne [L/J]",{"$f":"IFERROR(IF(Summo_Bruttogewinn=0,\"-\",Summo_Bruttogewinn/Summe_Umsatzerlös),\"-\")","v":"-"}]
[null,"Aktuelle Umsatzrendite [T/J]",{"$f":"IFERROR(IF(Nettogewinn=0,\"-\",Nettogewinn/Summe_Umsatzerlös),\"-\")","v":"-"}]
[null,"Ändern Sie nicht die Kategorien auf diesem Arbeitsblatt, da sonst die Formeln unterbrochen werden können. Verwenden Sie das Arbeitsblatt \"Kategorie\", um Kategorien hinzuzufügen und die entsprechenden Arbeitsblätter mit Einträgen zu aktualisieren. Dieses Arbeitsblatt wird automatisch aktualisiert."]
[null,"Zusammenfassung","Summe vorheriger Zeitraum","Summe Budget","Summe aktueller\nZeitraum","Summe aktueller Zeitraum als % vom Umsatz","Summe % Änderung gegenüber vorherigem Zeitraum","Summe % Änderung gegenüber Budget"]
[null,"Gesamtumsatzerlös [J]",{"$f":"SUMIFS(Umsatzerlös_1[Vorheriger Zeitraum],Umsatzerlös_1[Umsatzerlösart],\"Umsatzerlös\")","v":0},{"$f":"SUMIFS(Umsatzerlös_1[Budget],Umsatzerlös_1[Umsatzerlösart],\"Umsatzerlös\")","v":0},{"$f":"SUMIFS(Umsatzerlös_1[Aktueller Zeitraum],Umsatzerlös_1[Umsatzerlösart],\"Umsatzerlös\")","v":0},{"$f":"SUMIFS(Umsatzerlös_1[Aktueller Zeitraum als % vom Umsatz],Umsatzerlös_1[Umsatzerlösart],\"Umsatzerlös\")","v":{"v":0,"d":"0.00%"}},{"$f":"SUMIFS(Umsatzerlös_1[% Änderung gegenüber vorherigem Zeitraum],Umsatzerlös_1[Umsatzerlösart],\"Umsatzerlös\")","v":{"v":0,"d":"0.00%"}},{"$f":"SUMIFS(Umsatzerlös_1[% Änderung gegenüber \nBudget],Umsatzerlös_1[Umsatzerlösart],\"Umsatzerlös\")","v":{"v":0,"d":"0.00%"}}]
[null,"Gesamtvertriebskosten [K]",{"$f":"SUMIFS(Umsatzerlös_1[Vorheriger Zeitraum],Umsatzerlös_1[Umsatzerlösart],\"Vertriebskosten\")","v":0},{"$f":"SUMIFS(Umsatzerlös_1[Budget],Umsatzerlös_1[Umsatzerlösart],\"Vertriebskosten\")","v":0},{"$f":"SUMIFS(Umsatzerlös_1[Aktueller Zeitraum],Umsatzerlös_1[Umsatzerlösart],\"Vertriebskosten\")","v":0},{"$f":"SUMIFS(Umsatzerlös_1[Aktueller Zeitraum als % vom Umsatz],Umsatzerlös_1[Umsatzerlösart],\"Vertriebskosten\")","v":{"v":0,"d":"0.00%"}},{"$f":"SUMIFS(Umsatzerlös_1[% Änderung gegenüber vorherigem Zeitraum],Umsatzerlös_1[Umsatzerlösart],\"Vertriebskosten\")","v":{"v":0,"d":"0.00%"}},{"$f":"SUMIFS(Umsatzerlös_1[% Änderung gegenüber \nBudget],Umsatzerlös_1[Umsatzerlösart],\"Vertriebskosten\")","v":{"v":0,"d":"0.00%"}}]
[null,"Gesamtausgaben für Vertrieb und Marketing [M]",{"$f":"SUMIFS(Betriebsausgaben[Vorheriger Zeitraum],Betriebsausgaben[Ausgabenart],\"Vertrieb und Marketing\")","v":0},{"$f":"SUMIFS(Betriebsausgaben[Budget],Betriebsausgaben[Ausgabenart],\"Vertrieb und Marketing\")","v":0},{"$f":"SUMIFS(Betriebsausgaben[Aktueller Zeitraum],Betriebsausgaben[Ausgabenart],\"Vertrieb und Marketing\")","v":0},{"$f":"SUMIFS(Betriebsausgaben[Aktueller Zeitraum als % vom Umsatz],Betriebsausgaben[Ausgabenart],\"Vertrieb und Marketing\")","v":{"v":0,"d":"0.00%"}},{"$f":"SUMIFS(Betriebsausgaben[% Änderung gegenüber vorherigem Zeitraum],Betriebsausgaben[Ausgabenart],\"Vertrieb und Marketing\")","v":{"v":0,"d":"0.00%"}},{"$f":"SUMIFS(Betriebsausgaben[% Änderung gegenüber \nBudget],Betriebsausgaben[Ausgabenart],\"Vertrieb und Marketing\")","v":{"v":0,"d":"0.00%"}}]
[null,"Gesamtausgaben für Forschung und Entwicklung [N]",{"$f":"SUMIFS(Betriebsausgaben[Vorheriger Zeitraum],Betriebsausgaben[Ausgabenart],\"Forschung und Entwicklung\")","v":0},{"$f":"SUMIFS(Betriebsausgaben[Budget],Betriebsausgaben[Ausgabenart],\"Forschung und Entwicklung\")","v":0},{"$f":"SUMIFS(Betriebsausgaben[Aktueller Zeitraum],Betriebsausgaben[Ausgabenart],\"Forschung und Entwicklung\")","v":0},{"$f":"SUMIFS(Betriebsausgaben[Aktueller Zeitraum als % vom Umsatz],Betriebsausgaben[Ausgabenart],\"Forschung und Entwicklung\")","v":{"v":0,"d":"0.00%"}},{"$f":"SUMIFS(Betriebsausgaben[% Änderung gegenüber vorherigem Zeitraum],Betriebsausgaben[Ausgabenart],\"Forschung und Entwicklung\")","v":{"v":0,"d":"0.00%"}},{"$f":"SUMIFS(Betriebsausgaben[% Änderung gegenüber \nBudget],Betriebsausgaben[Ausgabenart],\"Forschung und Entwicklung\")","v":{"v":0,"d":"0.00%"}},{"$nulls":4}," "]
[null,"Gesamtausgaben für Allgemeines und Verwaltung [O]",{"$f":"SUMIFS(Betriebsausgaben[Vorheriger Zeitraum],Betriebsausgaben[Ausgabenart],\"Allgemeines und Verwaltung\")","v":0},{"$f":"SUMIFS(Betriebsausgaben[Budget],Betriebsausgaben[Ausgabenart],\"Allgemeines und Verwaltung\")","v":0},{"$f":"SUMIFS(Betriebsausgaben[Aktueller Zeitraum],Betriebsausgaben[Ausgabenart],\"Allgemeines und Verwaltung\")","v":0},{"$f":"SUMIFS(Betriebsausgaben[Aktueller Zeitraum als % vom Umsatz],Betriebsausgaben[Ausgabenart],\"Allgemeines und Verwaltung\")","v":{"v":0,"d":"0.00%"}},{"$f":"SUMIFS(Betriebsausgaben[% Änderung gegenüber vorherigem Zeitraum],Betriebsausgaben[Ausgabenart],\"Allgemeines und Verwaltung\")","v":{"v":0,"d":"0.00%"}},{"$f":"SUMIFS(Betriebsausgaben[% Änderung gegenüber \nBudget],Betriebsausgaben[Ausgabenart],\"Allgemeines und Verwaltung\")","v":{"v":0,"d":"0.00%"}}]
[null,"Summe sonstige Betriebsausgaben [P]",{"$f":"Betriebsausgaben[[#Totals],[Vorheriger Zeitraum]]-SUM(C9:C11)","v":0},{"$f":"Betriebsausgaben[[#Totals],[Budget]]-SUM(D9:D11)","v":0},{"$f":"Betriebsausgaben[[#Totals],[Aktueller Zeitraum]]-SUM(E9:E11)","v":0},{"$f":"Betriebsausgaben[[#Totals],[Aktueller Zeitraum als % vom Umsatz]]-SUM(F9:F11)","v":{"v":0,"d":"0.00%"}},{"$f":"Betriebsausgaben[[#Totals],[% Änderung gegenüber vorherigem Zeitraum]]-SUM(G9:G11)","v":{"v":0,"d":"0.00%"}},{"$f":"Betriebsausgaben[[#Totals],[% Änderung gegenüber \nBudget]]-SUM(H9:H11)","v":{"v":0,"d":"0.00%"}}]
[null,"Sonstige Einkünfte [S]",{"$f":"Einkünfte[[#Totals],[Vorheriger Zeitraum]]","v":0},{"$f":"Einkünfte[[#Totals],[Budget]]","v":0},{"$f":"Einkünfte[[#Totals],[Aktueller Zeitraum]]","v":0},{"$f":"Einkünfte[[#Totals],[Aktueller Zeitraum als % vom Umsatz]]","v":{"v":0,"d":"0.00%"}},{"$f":"Einkünfte[[#Totals],[% Änderung gegenüber vorherigem Zeitraum]]","v":{"v":0,"d":"0.00%"}},{"$f":"Einkünfte[[#Totals],[% Änderung gegenüber \nBudget]]","v":{"v":0,"d":"0.00%"}}]
[null,"Gesamtsteuern [T]",{"$f":"Steuern[[#Totals],[Vorheriger Zeitraum]]","v":0},{"$f":"Steuern[[#Totals],[Budget]]","v":0},{"$f":"Steuern[[#Totals],[Aktueller Zeitraum]]","v":0},{"$f":"Steuern[[#Totals],[Aktueller Zeitraum als % vom Umsatz]]","v":{"v":0,"d":"0.00%"}},{"$f":"Steuern[[#Totals],[% Änderung gegenüber vorherigem Zeitraum]]","v":{"v":0,"d":"0.00%"}},{"$f":"Steuern[[#Totals],[% Änderung gegenüber \nBudget]]","v":{"v":0,"d":"0.00%"}}]
[]
[null,"Bruttogewinn [L=J-K]",{"$f":"IFERROR(C7-C8,\"-\")","v":0},{"$f":"IFERROR(D7-D8,\"-\")","v":0},{"$f":"IFERROR(Summe_Umsatzerlös-Summe_Umsatzkosten,\"-\")","v":0},{"$f":"IFERROR(IF(Summe_Umsatzerlös=0,\"0,00%\",Summo_Bruttogewinn/Summe_Umsatzerlös),\"-\")","v":"0,00%"},{"$f":"IFERROR(IF(C16=Summo_Bruttogewinn,0,IF(Summo_Bruttogewinn>C16,ABS((Summo_Bruttogewinn/C16)-1),IF(AND(Summo_Bruttogewinn<C16,C16<0),-((Summo_Bruttogewinn/C16)-1),(Summo_Bruttogewinn/C16)-1))),\"-\")","v":{"v":0,"d":"0.00%"}},{"$f":"IFERROR(IF(D16=Summo_Bruttogewinn,0,IF(Summo_Bruttogewinn>D16,ABS((Summo_Bruttogewinn/D16)-1),IF(AND(Summo_Bruttogewinn<D16,D16<0),-((Summo_Bruttogewinn/D16)-1),(Summo_Bruttogewinn/D16)-1))),\"-\")","v":{"v":0,"d":"0.00%"}}]
[null,"Summe Betriebsausgaben [Q=M+N+O+P]",{"$f":"IFERROR(C9+C10+C11+C12,\"-\")","v":0},{"$f":"IFERROR(D9+D10+D11+D12,\"-\")","v":0},{"$f":"IFERROR(Summe_Vertrieb_und_Marketing+Summe_Forschung_und_Entwicklung+Summe_Allgemeines_und_Verwaltung+Summe_Sonstige_Ausgaben,\"-\")","v":0},{"$f":"IFERROR(IF(Summe_Umsatzerlös=0,\"0,00%\",Summe_Betriebsausgaben/Summe_Umsatzerlös),\"-\")","v":"0,00%"},{"$f":"IFERROR(IF(C17=Summe_Betriebsausgaben,0,IF(Summe_Betriebsausgaben>C17,ABS((Summe_Betriebsausgaben/C17)-1),IF(AND(Summe_Betriebsausgaben<C17,C17<0),-((Summe_Betriebsausgaben/C17)-1),(Summe_Betriebsausgaben/C17)-1))),\"-\")","v":{"v":0,"d":"0.00%"}},{"$f":"IFERROR(IF(D17=Summe_Betriebsausgaben,0,IF(Summe_Betriebsausgaben>D17,ABS((Summe_Betriebsausgaben/D17)-1),IF(AND(Summe_Betriebsausgaben<D17,D17<0),-((Summe_Betriebsausgaben/D17)-1),(Summe_Betriebsausgaben/D17)-1))),\"-\")","v":{"v":0,"d":"0.00%"}}]
[null,"Einkünfte aus Betrieb [R=L-Q]",{"$f":"IFERROR(C16-C17,\"-\")","v":0},{"$f":"IFERROR(D16-D17,\"-\")","v":0},{"$f":"IFERROR(Summo_Bruttogewinn-Summe_Betriebsausgaben,\"-\")","v":0},{"$f":"IFERROR(IF(Summe_Umsatzerlös=0,\"0,00%\",Summe_Einkünfte_aus_Betrieb/Summe_Umsatzerlös),\"-\")","v":"0,00%"},{"$f":"IFERROR(IF(C18=Summe_Einkünfte_aus_Betrieb,0,IF(Summe_Einkünfte_aus_Betrieb>C18,ABS((Summe_Einkünfte_aus_Betrieb/C18)-1),IF(AND(Summe_Einkünfte_aus_Betrieb<C18,C18<0),-((Summe_Einkünfte_aus_Betrieb/C18)-1),(Summe_Einkünfte_aus_Betrieb/C18)-1))),\"-\")","v":{"v":0,"d":"0.00%"}},{"$f":"IFERROR(IF(D18=Summe_Einkünfte_aus_Betrieb,0,IF(Summe_Einkünfte_aus_Betrieb>D18,ABS((Summe_Einkünfte_aus_Betrieb/D18)-1),IF(AND(Summe_Einkünfte_aus_Betrieb<D18,D18<0),-((Summe_Einkünfte_aus_Betrieb/D18)-1),(Summe_Einkünfte_aus_Betrieb/D18)-1))),\"-\")","v":{"v":0,"d":"0.00%"}}]
[null,"Nettogewinn [U=R+S-T]",{"$f":"IFERROR(C18+C13-C14,\"-\")","v":0},{"$f":"IFERROR(D18+D13-D14,\"-\")","v":0},{"$f":"Summe_Einkünfte_aus_Betrieb+Summe_Sonstige_Einkünfte-Summe_Steuern","v":0},{"$f":"IFERROR(IF(Summe_Umsatzerlös=0,\"0,00%\",Nettogewinn/Summe_Umsatzerlös),\"-\")","v":"0,00%"},{"$f":"IFERROR(IF(C19=Nettogewinn,0,IF(Nettogewinn>C19,ABS((Nettogewinn/C19)-1),IF(AND(Nettogewinn<C19,C19<0),-((Nettogewinn/C19)-1),(Nettogewinn/C19)-1))),\"-\")","v":{"v":0,"d":"0.00%"}},{"$f":"IFERROR(IF(D19=Nettogewinn,0,IF(Nettogewinn>D19,ABS((Nettogewinn/D19)-1),IF(AND(Nettogewinn<D19,D19<0),-((Nettogewinn/D19)-1),(Nettogewinn/D19)-1))),\"-\")","v":{"v":0,"d":"0.00%"}}]

{"sheet":"Umsatz","index":1,"n_rows":13,"n_cols":9,"rows_kept":13,"merged":[[0,7,2,8]]}
[null,{"$f":"Arbeitsmappe_Titel","v":"Gewinn- und Verlustrechnung"}]
[null,{"$f":"Firmenname","v":"Firmenname"},"Angabe in Tausendern"]
[null,"Umsatzerlös",{"$f":"IFERROR(Umsatzerlös,\"-\")","v":0}]
[null,"Umsatzerlösart","Beschreibung","Vorheriger Zeitraum","Budget","Aktueller Zeitraum","Aktueller Zeitraum als % vom Umsatz","% Änderung gegenüber vorherigem Zeitraum","% Änderung gegenüber \nBudget"]
[null,"Umsatzerlös","Produkt/Dienstleistung 1",{"$nulls":3},{"$f":"IFERROR(IF(Umsatzerlös_1[[#Totals],[Aktueller Zeitraum]]=0,\"-\",Umsatzerlös_1[Aktueller Zeitraum]/Umsatzerlös),\"-\")","v":"-"},{"$f":"IFERROR(IF(Umsatzerlös_1[Vorheriger Zeitraum]=Umsatzerlös_1[Aktueller Zeitraum],0,IF(Umsatzerlös_1[Aktueller Zeitraum]>Umsatzerlös_1[Vorheriger Zeitraum],ABS((Umsatzerlös_1[Aktueller Zeitraum]/Umsatzerlös_1[Vorheriger Zeitraum])-1),IF(AND(Umsatzerlös_1[Aktueller Zeitraum]<Umsatzerlös_1[Vorheriger Zeitraum],Umsatzerlös_1[Vorheriger Zeitraum]<0),-((Umsatzerlös_1[Aktueller Zeitraum]/Umsatzerlös_1[Vorheriger Zeitraum])-1),(Umsatzerlös_1[Aktueller Zeitraum]/Umsatzerlös_1[Vorheriger Zeitraum])-1))),\"-\")","v":{"v":0,"d":"0.00%"}},{"$f":"IFERROR(IF(Umsatzerlös_1[Budget]=Umsatzerlös_1[Aktueller Zeitraum],0,IF(Umsatzerlös_1[Aktueller Zeitraum]>Umsatzerlös_1[Budget],ABS((Umsatzerlös_1[Aktueller Zeitraum]/Umsatzerlös_1[Budget])-1),IF(AND(Umsatzerlös_1[Aktueller Zeitraum]<Umsatzerlös_1[Budget],Umsatzerlös_1[Budget]<0),-((Umsatzerlös_1[Aktueller Zeitraum]/Umsatzerlös_1[Budget])-1),(Umsatzerlös_1[Aktueller Zeitraum]/Umsatzerlös_1[Budget])-1))),\"-\")","v":{"v":0,"d":"0.00%"}}]
[null,"Umsatzerlös","Produkt/Dienstleistung 2",{"$nulls":3},{"$f":"IFERROR(IF(Umsatzerlös_1[[#Totals],[Aktueller Zeitraum]]=0,\"-\",Umsatzerlös_1[Aktueller Zeitraum]/Umsatzerlös),\"-\")","v":"-"},{"$f":"IFERROR(IF(Umsatzerlös_1[Vorheriger Zeitraum]=Umsatzerlös_1[Aktueller Zeitraum],0,IF(Umsatzerlös_1[Aktueller Zeitraum]>Umsatzerlös_1[Vorheriger Zeitraum],ABS((Umsatzerlös_1[Aktueller Zeitraum]/Umsatzerlös_1[Vorheriger Zeitraum])-1),IF(AND(Umsatzerlös_1[Aktueller Zeitraum]<Umsatzerlös_1[Vorheriger Zeitraum],Umsatzerlös_1[Vorheriger Zeitraum]<0),-((Umsatzerlös_1[Aktueller Zeitraum]/Umsatzerlös_1[Vorheriger Zeitraum])-1),(Umsatzerlös_1[Aktueller Zeitraum]/Umsatzerlös_1[Vorheriger Zeitraum])-1))),\"-\")","v":{"v":0,"d":"0.00%"}},{"$f":"IFERROR(IF(Umsatzerlös_1[Budget]=Umsatzerlös_1[Aktueller Zeitraum],0,IF(Umsatzerlös_1[Aktueller Zeitraum]>Umsatzerlös_1[Budget],ABS((Umsatzerlös_1[Aktueller Zeitraum]/Umsatzerlös_1[Budget])-1),IF(AND(Umsatzerlös_1[Aktueller Zeitraum]<Umsatzerlös_1[Budget],Umsatzerlös_1[Budget]<0),-((Umsatzerlös_1[Aktueller Zeitraum]/Umsatzerlös_1[Budget])-1),(Umsatzerlös_1[Aktueller Zeitraum]/Umsatzerlös_1[Budget])-1))),\"-\")","v":{"v":0,"d":"0.00%"}}]
[null,"Umsatzerlös","Produkt/Dienstleistung 3",{"$nulls":3},{"$f":"IFERROR(IF(Umsatzerlös_1[[#Totals],[Aktueller Zeitraum]]=0,\"-\",Umsatzerlös_1[Aktueller Zeitraum]/Umsatzerlös),\"-\")","v":"-"},{"$f":"IFERROR(IF(Umsatzerlös_1[Vorheriger Zeitraum]=Umsatzerlös_1[Aktueller Zeitraum],0,IF(Umsatzerlös_1[Aktueller Zeitraum]>Umsatzerlös_1[Vorheriger Zeitraum],ABS((Umsatzerlös_1[Aktueller Zeitraum]/Umsatzerlös_1[Vorheriger Zeitraum])-1),IF(AND(Umsatzerlös_1[Aktueller Zeitraum]<Umsatzerlös_1[Vorheriger Zeitraum],Umsatzerlös_1[Vorheriger Zeitraum]<0),-((Umsatzerlös_1[Aktueller Zeitraum]/Umsatzerlös_1[Vorheriger Zeitraum])-1),(Umsatzerlös_1[Aktueller Zeitraum]/Umsatzerlös_1[Vorheriger Zeitraum])-1))),\"-\")","v":{"v":0,"d":"0.00%"}},{"$f":"IFERROR(IF(Umsatzerlös_1[Budget]=Umsatzerlös_1[Aktueller Zeitraum],0,IF(Umsatzerlös_1[Aktueller Zeitraum]>Umsatzerlös_1[Budget],ABS((Umsatzerlös_1[Aktueller Zeitraum]/Umsatzerlös_1[Budget])-1),IF(AND(Umsatzerlös_1[Aktueller Zeitraum]<Umsatzerlös_1[Budget],Umsatzerlös_1[Budget]<0),-((Umsatzerlös_1[Aktueller Zeitraum]/Umsatzerlös_1[Budget])-1),(Umsatzerlös_1[Aktueller Zeitraum]/Umsatzerlös_1[Budget])-1))),\"-\")","v":{"v":0,"d":"0.00%"}}]
[null,"Umsatzerlös","Produkt/Dienstleistung 4",{"$nulls":3},{"$f":"IFERROR(IF(Umsatzerlös_1[[#Totals],[Aktueller Zeitraum]]=0,\"-\",Umsatzerlös_1[Aktueller Zeitraum]/Umsatzerlös),\"-\")","v":"-"},{"$f":"IFERROR(IF(Umsatzerlös_1[Vorheriger Zeitraum]=Umsatzerlös_1[Aktueller Zeitraum],0,IF(Umsatzerlös_1[Aktueller Zeitraum]>Umsatzerlös_1[Vorheriger Zeitraum],ABS((Umsatzerlös_1[Aktueller Zeitraum]/Umsatzerlös_1[Vorheriger Zeitraum])-1),IF(AND(Umsatzerlös_1[Aktueller Zeitraum]<Umsatzerlös_1[Vorheriger Zeitraum],Umsatzerlös_1[Vorheriger Zeitraum]<0),-((Umsatzerlös_1[Aktueller Zeitraum]/Umsatzerlös_1[Vorheriger Zeitraum])-1),(Umsatzerlös_1[Aktueller Zeitraum]/Umsatzerlös_1[Vorheriger Zeitraum])-1))),\"-\")","v":{"v":0,"d":"0.00%"}},{"$f":"IFERROR(IF(Umsatzerlös_1[Budget]=Umsatzerlös_1[Aktueller Zeitraum],0,IF(Umsatzerlös_1[Aktueller Zeitraum]>Umsatzerlös_1[Budget],ABS((Umsatzerlös_1[Aktueller Zeitraum]/Umsatzerlös_1[Budget])-1),IF(AND(Umsatzerlös_1[Aktueller Zeitraum]<Umsatzerlös_1[Budget],Umsatzerlös_1[Budget]<0),-((Umsatzerlös_1[Aktueller Zeitraum]/Umsatzerlös_1[Budget])-1),(Umsatzerlös_1[Aktueller Zeitraum]/Umsatzerlös_1[Budget])-1))),\"-\")","v":{"v":0,"d":"0.00%"}}]
[null,"Vertriebskosten","Produkt/Dienstleistung 1",{"$nulls":3},{"$f":"IFERROR(IF(Umsatzerlös_1[[#Totals],[Aktueller Zeitraum]]=0,\"-\",Umsatzerlös_1[Aktueller Zeitraum]/Umsatzerlös),\"-\")","v":"-"},{"$f":"IFERROR(IF(Umsatzerlös_1[Vorheriger Zeitraum]=Umsatzerlös_1[Aktueller Zeitraum],0,IF(Umsatzerlös_1[Aktueller Zeitraum]>Umsatzerlös_1[Vorheriger Zeitraum],ABS((Umsatzerlös_1[Aktueller Zeitraum]/Umsatzerlös_1[Vorheriger Zeitraum])-1),IF(AND(Umsatzerlös_1[Aktueller Zeitraum]<Umsatzerlös_1[Vorheriger Zeitraum],Umsatzerlös_1[Vorheriger Zeitraum]<0),-((Umsatzerlös_1[Aktueller Zeitraum]/Umsatzerlös_1[Vorheriger Zeitraum])-1),(Umsatzerlös_1[Aktueller Zeitraum]/Umsatzerlös_1[Vorheriger Zeitraum])-1))),\"-\")","v":{"v":0,"d":"0.00%"}},{"$f":"IFERROR(IF(Umsatzerlös_1[Budget]=Umsatzerlös_1[Aktueller Zeitraum],0,IF(Umsatzerlös_1[Aktueller Zeitraum]>Umsatzerlös_1[Budget],ABS((Umsatzerlös_1[Aktueller Zeitraum]/Umsatzerlös_1[Budget])-1),IF(AND(Umsatzerlös_1[Aktueller Zeitraum]<Umsatzerlös_1[Budget],Umsatzerlös_1[Budget]<0),-((Umsatzerlös_1[Aktueller Zeitraum]/Umsatzerlös_1[Budget])-1),(Umsatzerlös_1[Aktueller Zeitraum]/Umsatzerlös_1[Budget])-1))),\"-\")","v":{"v":0,"d":"0.00%"}}]
[null,"Vertriebskosten","Produkt/Dienstleistung 2",{"$nulls":3},{"$f":"IFERROR(IF(Umsatzerlös_1[[#Totals],[Aktueller Zeitraum]]=0,\"-\",Umsatzerlös_1[Aktueller Zeitraum]/Umsatzerlös),\"-\")","v":"-"},{"$f":"IFERROR(IF(Umsatzerlös_1[Vorheriger Zeitraum]=Umsatzerlös_1[Aktueller Zeitraum],0,IF(Umsatzerlös_1[Aktueller Zeitraum]>Umsatzerlös_1[Vorheriger Zeitraum],ABS((Umsatzerlös_1[Aktueller Zeitraum]/Umsatzerlös_1[Vorheriger Zeitraum])-1),IF(AND(Umsatzerlös_1[Aktueller Zeitraum]<Umsatzerlös_1[Vorheriger Zeitraum],Umsatzerlös_1[Vorheriger Zeitraum]<0),-((Umsatzerlös_1[Aktueller Zeitraum]/Umsatzerlös_1[Vorheriger Zeitraum])-1),(Umsatzerlös_1[Aktueller Zeitraum]/Umsatzerlös_1[Vorheriger Zeitraum])-1))),\"-\")","v":{"v":0,"d":"0.00%"}},{"$f":"IFERROR(IF(Umsatzerlös_1[Budget]=Umsatzerlös_1[Aktueller Zeitraum],0,IF(Umsatzerlös_1[Aktueller Zeitraum]>Umsatzerlös_1[Budget],ABS((Umsatzerlös_1[Aktueller Zeitraum]/Umsatzerlös_1[Budget])-1),IF(AND(Umsatzerlös_1[Aktueller Zeitraum]<Umsatzerlös_1[Budget],Umsatzerlös_1[Budget]<0),-((Umsatzerlös_1[Aktueller Zeitraum]/Umsatzerlös_1[Budget])-1),(Umsatzerlös_1[Aktueller Zeitraum]/Umsatzerlös_1[Budget])-1))),\"-\")","v":{"v":0,"d":"0.00%"}}]
[null,"Vertriebskosten","Produkt/Dienstleistung 3",{"$nulls":3},{"$f":"IFERROR(IF(Umsatzerlös_1[[#Totals],[Aktueller Zeitraum]]=0,\"-\",Umsatzerlös_1[Aktueller Zeitraum]/Umsatzerlös),\"-\")","v":"-"},{"$f":"IFERROR(IF(Umsatzerlös_1[Vorheriger Zeitraum]=Umsatzerlös_1[Aktueller Zeitraum],0,IF(Umsatzerlös_1[Aktueller Zeitraum]>Umsatzerlös_1[Vorheriger Zeitraum],ABS((Umsatzerlös_1[Aktueller Zeitraum]/Umsatzerlös_1[Vorheriger Zeitraum])-1),IF(AND(Umsatzerlös_1[Aktueller Zeitraum]<Umsatzerlös_1[Vorheriger Zeitraum],Umsatzerlös_1[Vorheriger Zeitraum]<0),-((Umsatzerlös_1[Aktueller Zeitraum]/Umsatzerlös_1[Vorheriger Zeitraum])-1),(Umsatzerlös_1[Aktueller Zeitraum]/Umsatzerlös_1[Vorheriger Zeitraum])-1))),\"-\")","v":{"v":0,"d":"0.00%"}},{"$f":"IFERROR(IF(Umsatzerlös_1[Budget]=Umsatzerlös_1[Aktueller Zeitraum],0,IF(Umsatzerlös_1[Aktueller Zeitraum]>Umsatzerlös_1[Budget],ABS((Umsatzerlös_1[Aktueller Zeitraum]/Umsatzerlös_1[Budget])-1),IF(AND(Umsatzerlös_1[Aktueller Zeitraum]<Umsatzerlös_1[Budget],Umsatzerlös_1[Budget]<0),-((Umsatzerlös_1[Aktueller Zeitraum]/Umsatzerlös_1[Budget])-1),(Umsatzerlös_1[Aktueller Zeitraum]/Umsatzerlös_1[Budget])-1))),\"-\")","v":{"v":0,"d":"0.00%"}}]
[null,"Vertriebskosten","Produkt/Dienstleistung 4",{"$nulls":3},{"$f":"IFERROR(IF(Umsatzerlös_1[[#Totals],[Aktueller Zeitraum]]=0,\"-\",Umsatzerlös_1[Aktueller Zeitraum]/Umsatzerlös),\"-\")","v":"-"},{"$f":"IFERROR(IF(Umsatzerlös_1[Vorheriger Zeitraum]=Umsatzerlös_1[Aktueller Zeitraum],0,IF(Umsatzerlös_1[Aktueller Zeitraum]>Umsatzerlös_1[Vorheriger Zeitraum],ABS((Umsatzerlös_1[Aktueller Zeitraum]/Umsatzerlös_1[Vorheriger Zeitraum])-1),IF(AND(Umsatzerlös_1[Aktueller Zeitraum]<Umsatzerlös_1[Vorheriger Zeitraum],Umsatzerlös_1[Vorheriger Zeitraum]<0),-((Umsatzerlös_1[Aktueller Zeitraum]/Umsatzerlös_1[Vorheriger Zeitraum])-1),(Umsatzerlös_1[Aktueller Zeitraum]/Umsatzerlös_1[Vorheriger Zeitraum])-1))),\"-\")","v":{"v":0,"d":"0.00%"}},{"$f":"IFERROR(IF(Umsatzerlös_1[Budget]=Umsatzerlös_1[Aktueller Zeitraum],0,IF(Umsatzerlös_1[Aktueller Zeitraum]>Umsatzerlös_1[Budget],ABS((Umsatzerlös_1[Aktueller Zeitraum]/Umsatzerlös_1[Budget])-1),IF(AND(Umsatzerlös_1[Aktueller Zeitraum]<Umsatzerlös_1[Budget],Umsatzerlös_1[Budget]<0),-((Umsatzerlös_1[Aktueller Zeitraum]/Umsatzerlös_1[Budget])-1),(Umsatzerlös_1[Aktueller Zeitraum]/Umsatzerlös_1[Budget])-1))),\"-\")","v":{"v":0,"d":"0.00%"}}]
[null,"Gesamtumsatzerlös",null,{"$f":"SUBTOTAL(109,Umsatzerlös_1[Vorheriger Zeitraum])","v":0},{"$f":"SUBTOTAL(109,Umsatzerlös_1[Budget])","v":0},{"$f":"SUBTOTAL(109,Umsatzerlös_1[Aktueller Zeitraum])","v":0},{"$f":"SUBTOTAL(109,Umsatzerlös_1[Aktueller Zeitraum als % vom Umsatz])","v":{"v":0,"d":"0.00%"}},{"$f":"SUBTOTAL(109,Umsatzerlös_1[% Änderung gegenüber vorherigem Zeitraum])","v":{"v":0,"d":"0.00%"}},{"$f":"SUBTOTAL(109,Umsatzerlös_1[% Änderung gegenüber \nBudget])","v":{"v":0,"d":"0.00%"}}]

{"sheet":"Einkünfte","index":2,"n_rows":7,"n_cols":9,"rows_kept":7,"merged":[[0,7,2,8]]}
[null,{"$f":"Arbeitsmappe_Titel","v":"Gewinn- und Verlustrechnung"}]
[null,{"$f":"Firmenname","v":"Firmenname"},"Angabe in Tausendern"]
[null,"Einkünfte",{"$f":"IFERROR(Einkünfte[[#Totals],[Aktueller Zeitraum]],\"-\")","v":0}]
[null,"Art der Einkünfte","Beschreibung","Vorheriger Zeitraum","Budget","Aktueller Zeitraum","Aktueller Zeitraum als % vom Umsatz","% Änderung gegenüber vorherigem Zeitraum","% Änderung gegenüber \nBudget"]
[null,"Einkünfte","Sonstige Einkünfte",{"$nulls":3},{"$f":"IFERROR(IF(Umsatzerlös=0,\"-\",Einkünfte[Aktueller Zeitraum]/Umsatzerlös),\"-\")","v":"-"},{"$f":"IFERROR(IF(Einkünfte[Vorheriger Zeitraum]=Einkünfte[Aktueller Zeitraum],0,IF(Einkünfte[Aktueller Zeitraum]>Einkünfte[Vorheriger Zeitraum],ABS((Einkünfte[Aktueller Zeitraum]/Einkünfte[Vorheriger Zeitraum])-1),IF(AND(Einkünfte[Aktueller Zeitraum]<Einkünfte[Vorheriger Zeitraum],Einkünfte[Vorheriger Zeitraum]<0),-((Einkünfte[Aktueller Zeitraum]/Einkünfte[Vorheriger Zeitraum])-1),(Einkünfte[Aktueller Zeitraum]/Einkünfte[Vorheriger Zeitraum])-1))),\"-\")","v":{"v":0,"d":"0.00%"}},{"$f":"IFERROR(IF(Einkünfte[Budget]=Einkünfte[Aktueller Zeitraum],0,IF(Einkünfte[Aktueller Zeitraum]>Einkünfte[Budget],ABS((Einkünfte[Aktueller Zeitraum]/Einkünfte[Budget])-1),IF(AND(Einkünfte[Aktueller Zeitraum]<Einkünfte[Budget],Einkünfte[Budget]<0),-((Einkünfte[Aktueller Zeitraum]/Einkünfte[Budget])-1),(Einkünfte[Aktueller Zeitraum]/Einkünfte[Budget])-1))),\"-\")","v":{"v":0,"d":"0.00%"}}]
[{"$nulls":6},{"$f":"IFERROR(IF(Umsatzerlös=0,\"-\",Einkünfte[Aktueller Zeitraum]/Umsatzerlös),\"-\")","v":"-"},{"$f":"IFERROR(IF(Einkünfte[Vorheriger Zeitraum]=Einkünfte[Aktueller Zeitraum],0,IF(Einkünfte[Aktueller Zeitraum]>Einkünfte[Vorheriger Zeitraum],ABS((Einkünfte[Aktueller Zeitraum]/Einkünfte[Vorheriger Zeitraum])-1),IF(AND(Einkünfte[Aktueller Zeitraum]<Einkünfte[Vorheriger Zeitraum],Einkünfte[Vorheriger Zeitraum]<0),-((Einkünfte[Aktueller Zeitraum]/Einkünfte[Vorheriger Zeitraum])-1),(Einkünfte[Aktueller Zeitraum]/Einkünfte[Vorheriger Zeitraum])-1))),\"-\")","v":{"v":0,"d":"0.00%"}},{"$f":"IFERROR(IF(Einkünfte[Budget]=Einkünfte[Aktueller Zeitraum],0,IF(Einkünfte[Aktueller Zeitraum]>Einkünfte[Budget],ABS((Einkünfte[Aktueller Zeitraum]/Einkünfte[Budget])-1),IF(AND(Einkünfte[Aktueller Zeitraum]<Einkünfte[Budget],Einkünfte[Budget]<0),-((Einkünfte[Aktueller Zeitraum]/Einkünfte[Budget])-1),(Einkünfte[Aktueller Zeitraum]/Einkünfte[Budget])-1))),\"-\")","v":{"v":0,"d":"0.00%"}}]
[null,"Summe Einkünfte aus Verkauf",null,{"$f":"SUBTOTAL(109,Einkünfte[Vorheriger Zeitraum])","v":0},{"$f":"SUBTOTAL(109,Einkünfte[Budget])","v":0},{"$f":"SUBTOTAL(109,Einkünfte[Aktueller Zeitraum])","v":0},{"$f":"SUBTOTAL(109,Einkünfte[Aktueller Zeitraum als % vom Umsatz])","v":{"v":0,"d":"0.00%"}},{"$f":"SUBTOTAL(109,Einkünfte[% Änderung gegenüber vorherigem Zeitraum])","v":{"v":0,"d":"0.00%"}},{"$f":"SUBTOTAL(109,Einkünfte[% Änderung gegenüber \nBudget])","v":{"v":0,"d":"0.00%"}}]

{"sheet":"Ausgaben","index":3,"n_rows":25,"n_cols":9,"rows_kept":25,"merged":[[0,7,2,8]]}
[null,{"$f":"Arbeitsmappe_Titel","v":"Gewinn- und Verlustrechnung"}]
[null,{"$f":"Firmenname","v":"Firmenname"},"Angabe in Tausendern"]
[null,"Betriebsausgaben",{"$f":"IFERROR(Betriebsausgaben[[#Totals],[Aktueller Zeitraum]],\"-\")","v":0}]
[null,"Ausgabenart","Beschreibung","Vorheriger Zeitraum","Budget","Aktueller Zeitraum","Aktueller Zeitraum als % vom Umsatz","% Änderung gegenüber vorherigem Zeitraum","% Änderung gegenüber \nBudget"]
[null,"Vertrieb und Marketing","Werbung",{"$nulls":3},{"$f":"IFERROR(IF(Umsatzerlös=0,\"-\",Betriebsausgaben[Aktueller Zeitraum]/Umsatzerlös),\"-\")","v":"-"},{"$f":"IFERROR(IF(Betriebsausgaben[[#This Row],[Vorheriger Zeitraum]]=Betriebsausgaben[[#This Row],[Aktueller Zeitraum]],0,IF(Betriebsausgaben[[#This Row],[Aktueller Zeitraum]]>Betriebsausgaben[[#This Row],[Vorheriger Zeitraum]],ABS((Betriebsausgaben[[#This Row],[Aktueller Zeitraum]]/Betriebsausgaben[[#This Row],[Vorheriger Zeitraum]])-1),IF(AND(Betriebsausgaben[[#This Row],[Aktueller Zeitraum]]<Betriebsausgaben[[#This Row],[Vorheriger Zeitraum]],Betriebsausgaben[[#This Row],[Vorheriger Zeitraum]]<0),-((Betriebsausgaben[[#This Row],[Aktueller Zeitraum]]/Betriebsausgaben[[#This Row],[Vorheriger Zeitraum]])-1),(Betriebsausgaben[[#This Row],[Aktueller Zeitraum]]/Betriebsausgaben[[#This Row],[Vorheriger Zeitraum]])-1))),\"-\")","v":{"v":0,"d":"0.00%"}},{"$f":"IFERROR(IF(Betriebsausgaben[[#This Row],[Budget]]=Betriebsausgaben[[#This Row],[Aktueller Zeitraum]],0,IF(Betriebsausgaben[[#This Row],[Aktueller Zeitraum]]>Betriebsausgaben[[#This Row],[Budget]],ABS((Betriebsausgaben[[#This Row],[Aktueller Zeitraum]]/Betriebsausgaben[[#This Row],[Budget]])-1),IF(AND(Betriebsausgaben[[#This Row],[Aktueller Zeitraum]]<Betriebsausgaben[[#This Row],[Budget]],Betriebsausgaben[[#This Row],[Budget]]<0),-((Betriebsausgaben[[#This Row],[Aktueller Zeitraum]]/Betriebsausgaben[[#This Row],[Budget]])-1),(Betriebsausgaben[[#This Row],[Aktueller Zeitraum]]/Betriebsausgaben[[#This Row],[Budget]])-1))),\"-\")","v":{"v":0,"d":"0.00%"}}]
[null,"Vertrieb und Marketing","Direktmarketing",{"$nulls":3},{"$f":"IFERROR(IF(Umsatzerlös=0,\"-\",Betriebsausgaben[Aktueller Zeitraum]/Umsatzerlös),\"-\")","v":"-"},{"$f":"IFERROR(IF(Betriebsausgaben[[#This Row],[Vorheriger Zeitraum]]=Betriebsausgaben[[#This Row],[Aktueller Zeitraum]],0,IF(Betriebsausgaben[[#This Row],[Aktueller Zeitraum]]>Betriebsausgaben[[#This Row],[Vorheriger Zeitraum]],ABS((Betriebsausgaben[[#This Row],[Aktueller Zeitraum]]/Betriebsausgaben[[#This Row],[Vorheriger Zeitraum]])-1),IF(AND(Betriebsausgaben[[#This Row],[Aktueller Zeitraum]]<Betriebsausgaben[[#This Row],[Vorheriger Zeitraum]],Betriebsausgaben[[#This Row],[Vorheriger Zeitraum]]<0),-((Betriebsausgaben[[#This Row],[Aktueller Zeitraum]]/Betriebsausgaben[[#This Row],[Vorheriger Zeitraum]])-1),(Betriebsausgaben[[#This Row],[Aktueller Zeitraum]]/Betriebsausgaben[[#This Row],[Vorheriger Zeitraum]])-1))),\"-\")","v":{"v":0,"d":"0.00%"}},{"$f":"IFERROR(IF(Betriebsausgaben[[#This Row],[Budget]]=Betriebsausgaben[[#This Row],[Aktueller Zeitraum]],0,IF(Betriebsausgaben[[#This Row],[Aktueller Zeitraum]]>Betriebsausgaben[[#This Row],[Budget]],ABS((Betriebsausgaben[[#This Row],[Aktueller Zeitraum]]/Betriebsausgaben[[#This Row],[Budget]])-1),IF(AND(Betriebsausgaben[[#This Row],[Aktueller Zeitraum]]<Betriebsausgaben[[#This Row],[Budget]],Betriebsausgaben[[#This Row],[Budget]]<0),-((Betriebsausgaben[[#This Row],[Aktueller Zeitraum]]/Betriebsausgaben[[#This Row],[Budget]])-1),(Betriebsausgaben[[#This Row],[Aktueller Zeitraum]]/Betriebsausgaben[[#This Row],[Budget]])-1))),\"-\")","v":{"v":0,"d":"0.00%"}}]
[null,"Vertrieb und Marketing","Sonstige Ausgaben (angeben)",{"$nulls":3},{"$f":"IFERROR(IF(Umsatzerlös=0,\"-\",Betriebsausgaben[Aktueller Zeitraum]/Umsatzerlös),\"-\")","v":"-"},{"$f":"IFERROR(IF(Betriebsausgaben[[#This Row],[Vorheriger Zeitraum]]=Betriebsausgaben[[#This Row],[Aktueller Zeitraum]],0,IF(Betriebsausgaben[[#This Row],[Aktueller Zeitraum]]>Betriebsausgaben[[#This Row],[Vorheriger Zeitraum]],ABS((Betriebsausgaben[[#This Row],[Aktueller Zeitraum]]/Betriebsausgaben[[#This Row],[Vorheriger Zeitraum]])-1),IF(AND(Betriebsausgaben[[#This Row],[Aktueller Zeitraum]]<Betriebsausgaben[[#This Row],[Vorheriger Zeitraum]],Betriebsausgaben[[#This Row],[Vorheriger Zeitraum]]<0),-((Betriebsausgaben[[#This Row],[Aktueller Zeitraum]]/Betriebsausgaben[[#This Row],[Vorheriger Zeitraum]])-1),(Betriebsausgaben[[#This Row],[Aktueller Zeitraum]]/Betriebsausgaben[[#This Row],[Vorheriger Zeitraum]])-1))),\"-\")","v":{"v":0,"d":"0.00%"}},{"$f":"IFERROR(IF(Betriebsausgaben[[#This Row],[Budget]]=Betriebsausgaben[[#This Row],[Aktueller Zeitraum]],0,IF(Betriebsausgaben[[#This Row],[Aktueller Zeitraum]]>Betriebsausgaben[[#This Row],[Budget]],ABS((Betriebsausgaben[[#This Row],[Aktueller Zeitraum]]/Betriebsausgaben[[#This Row],[Budget]])-1),IF(AND(Betriebsausgaben[[#This Row],[Aktueller Zeitraum]]<Betriebsausgaben[[#This Row],[Budget]],Betriebsausgaben[[#This Row],[Budget]]<0),-((Betriebsausgaben[[#This Row],[Aktueller Zeitraum]]/Betriebsausgaben[[#This Row],[Budget]])-1),(Betriebsausgaben[[#This Row],[Aktueller Zeitraum]]/Betriebsausgaben[[#This Row],[Budget]])-1))),\"-\")","v":{"v":0,"d":"0.00%"}}]
[null,"Vertrieb und Marketing","Sonstige Ausgaben (angeben)",{"$nulls":3},{"$f":"IFERROR(IF(Umsatzerlös=0,\"-\",Betriebsausgaben[Aktueller Zeitraum]/Umsatzerlös),\"-\")","v":"-"},{"$f":"IFERROR(IF(Betriebsausgaben[[#This Row],[Vorheriger Zeitraum]]=Betriebsausgaben[[#This Row],[Aktueller Zeitraum]],0,IF(Betriebsausgaben[[#This Row],[Aktueller Zeitraum]]>Betriebsausgaben[[#This Row],[Vorheriger Zeitraum]],ABS((Betriebsausgaben[[#This Row],[Aktueller Zeitraum]]/Betriebsausgaben[[#This Row],[Vorheriger Zeitraum]])-1),IF(AND(Betriebsausgaben[[#This Row],[Aktueller Zeitraum]]<Betriebsausgaben[[#This Row],[Vorheriger Zeitraum]],Betriebsausgaben[[#This Row],[Vorheriger Zeitraum]]<0),-((Betriebsausgaben[[#This Row],[Aktueller Zeitraum]]/Betriebsausgaben[[#This Row],[Vorheriger Zeitraum]])-1),(Betriebsausgaben[[#This Row],[Aktueller Zeitraum]]/Betriebsausgaben[[#This Row],[Vorheriger Zeitraum]])-1))),\"-\")","v":{"v":0,"d":"0.00%"}},{"$f":"IFERROR(IF(Betriebsausgaben[[#This Row],[Budget]]=Betriebsausgaben[[#This Row],[Aktueller Zeitraum]],0,IF(Betriebsausgaben[[#This Row],[Aktueller Zeitraum]]>Betriebsausgaben[[#This Row],[Budget]],ABS((Betriebsausgaben[[#This Row],[Aktueller Zeitraum]]/Betriebsausgaben[[#This Row],[Budget]])-1),IF(AND(Betriebsausgaben[[#This Row],[Aktueller Zeitraum]]<Betriebsausgaben[[#This Row],[Budget]],Betriebsausgaben[[#This Row],[Budget]]<0),-((Betriebsausgaben[[#This Row],[Aktueller Zeitraum]]/Betriebsausgaben[[#This Row],[Budget]])-1),(Betriebsausgaben[[#This Row],[Aktueller Zeitraum]]/Betriebsausgaben[[#This Row],[Budget]])-1))),\"-\")","v":{"v":0,"d":"0.00%"}}]
[null,"Forschung und Entwicklung","Technologielizenzen",{"$nulls":3},{"$f":"IFERROR(IF(Umsatzerlös=0,\"-\",Betriebsausgaben[Aktueller Zeitraum]/Umsatzerlös),\"-\")","v":"-"},{"$f":"IFERROR(IF(Betriebsausgaben[[#This Row],[Vorheriger Zeitraum]]=Betriebsausgaben[[#This Row],[Aktueller Zeitraum]],0,IF(Betriebsausgaben[[#This Row],[Aktueller Zeitraum]]>Betriebsausgaben[[#This Row],[Vorheriger Zeitraum]],ABS((Betriebsausgaben[[#This Row],[Aktueller Zeitraum]]/Betriebsausgaben[[#This Row],[Vorheriger Zeitraum]])-1),IF(AND(Betriebsausgaben[[#This Row],[Aktueller Zeitraum]]<Betriebsausgaben[[#This Row],[Vorheriger Zeitraum]],Betriebsausgaben[[#This Row],[Vorheriger Zeitraum]]<0),-((Betriebsausgaben[[#This Row],[Aktueller Zeitraum]]/Betriebsausgaben[[#This Row],[Vorheriger Zeitraum]])-1),(Betriebsausgaben[[#This Row],[Aktueller Zeitraum]]/Betriebsausgaben[[#This Row],[Vorheriger Zeitraum]])-1))),\"-\")","v":{"v":0,"d":"0.00%"}},{"$f":"IFERROR(IF(Betriebsausgaben[[#This Row],[Budget]]=Betriebsausgaben[[#This Row],[Aktueller Zeitraum]],0,IF(Betriebsausgaben[[#This Row],[Aktueller Zeitraum]]>Betriebsausgaben[[#This Row],[Budget]],ABS((Betriebsausgaben[[#This Row],[Aktueller Zeitraum]]/Betriebsausgaben[[#This Row],[Budget]])-1),IF(AND(Betriebsausgaben[[#This Row],[Aktueller Zeitraum]]<Betriebsausgaben[[#This Row],[Budget]],Betriebsausgaben[[#This Row],[Budget]]<0),-((Betriebsausgaben[[#This Row],[Aktueller Zeitraum]]/Betriebsausgaben[[#This Row],[Budget]])-1),(Betriebsausgaben[[#This Row],[Aktueller Zeitraum]]/Betriebsausgaben[[#This Row],[Budget]])-1))),\"-\")","v":{"v":0,"d":"0.00%"}}]
[null,"Forschung und Entwicklung","Patente ",{"$nulls":3},{"$f":"IFERROR(IF(Umsatzerlös=0,\"-\",Betriebsausgaben[Aktueller Zeitraum]/Umsatzerlös),\"-\")","v":"-"},{"$f":"IFERROR(IF(Betriebsausgaben[[#This Row],[Vorheriger Zeitraum]]=Betriebsausgaben[[#This Row],[Aktueller Zeitraum]],0,IF(Betriebsausgaben[[#This Row],[Aktueller Zeitraum]]>Betriebsausgaben[[#This Row],[Vorheriger Zeitraum]],ABS((Betriebsausgaben[[#This Row],[Aktueller Zeitraum]]/Betriebsausgaben[[#This Row],[Vorheriger Zeitraum]])-1),IF(AND(Betriebsausgaben[[#This Row],[Aktueller Zeitraum]]<Betriebsausgaben[[#This Row],[Vorheriger Zeitraum]],Betriebsausgaben[[#This Row],[Vorheriger Zeitraum]]<0),-((Betriebsausgaben[[#This Row],[Aktueller Zeitraum]]/Betriebsausgaben[[#This Row],[Vorheriger Zeitraum]])-1),(Betriebsausgaben[[#This Row],[Aktueller Zeitraum]]/Betriebsausgaben[[#This Row],[Vorheriger Zeitraum]])-1))),\"-\")","v":{"v":0,"d":"0.00%"}},{"$f":"IFERROR(IF(Betriebsausgaben[[#This Row],[Budget]]=Betriebsausgaben[[#This Row],[Aktueller Zeitraum]],0,IF(Betriebsausgaben[[#This Row],[Aktueller Zeitraum]]>Betriebsausgaben[[#This Row],[Budget]],ABS((Betriebsausgaben[[#This Row],[Aktueller Zeitraum]]/Betriebsausgaben[[#This Row],[Budget]])-1),IF(AND(Betriebsausgaben[[#This Row],[Aktueller Zeitraum]]<Betriebsausgaben[[#This Row],[Budget]],Betriebsausgaben[[#This Row],[Budget]]<0),-((Betriebsausgaben[[#This Row],[Aktueller Zeitraum]]/Betriebsausgaben[[#This Row],[Budget]])-1),(Betriebsausgaben[[#This Row],[Aktueller Zeitraum]]/Betriebsausgaben[[#This Row],[Budget]])-1))),\"-\")","v":{"v":0,"d":"0.00%"}}]
[null,"Forschung und Entwicklung","Sonstige Ausgaben (angeben)",{"$nulls":3},{"$f":"IFERROR(IF(Umsatzerlös=0,\"-\",Betriebsausgaben[Aktueller Zeitraum]/Umsatzerlös),\"-\")","v":"-"},{"$f":"IFERROR(IF(Betriebsausgaben[[#This Row],[Vorheriger Zeitraum]]=Betriebsausgaben[[#This Row],[Aktueller Zeitraum]],0,IF(Betriebsausgaben[[#This Row],[Aktueller Zeitraum]]>Betriebsausgaben[[#This Row],[Vorheriger Zeitraum]],ABS((Betriebsausgaben[[#This Row],[Aktueller Zeitraum]]/Betriebsausgaben[[#This Row],[Vorheriger Zeitraum]])-1),IF(AND(Betriebsausgaben[[#This Row],[Aktueller Zeitraum]]<Betriebsausgaben[[#This Row],[Vorheriger Zeitraum]],Betriebsausgaben[[#This Row],[Vorheriger Zeitraum]]<0),-((Betriebsausgaben[[#This Row],[Aktueller Zeitraum]]/Betriebsausgaben[[#This Row],[Vorheriger Zeitraum]])-1),(Betriebsausgaben[[#This Row],[Aktueller Zeitraum]]/Betriebsausgaben[[#This Row],[Vorheriger Zeitraum]])-1))),\"-\")","v":{"v":0,"d":"0.00%"}},{"$f":"IFERROR(IF(Betriebsausgaben[[#This Row],[Budget]]=Betriebsausgaben[[#This Row],[Aktueller Zeitraum]],0,IF(Betriebsausgaben[[#This Row],[Aktueller Zeitraum]]>Betriebsausgaben[[#This Row],[Budget]],ABS((Betriebsausgaben[[#This Row],[Aktueller Zeitraum]]/Betriebsausgaben[[#This Row],[Budget]])-1),IF(AND(Betriebsausgaben[[#This Row],[Aktueller Zeitraum]]<Betriebsausgaben[[#This Row],[Budget]],Betriebsausgaben[[#This Row],[Budget]]<0),-((Betriebsausgaben[[#This Row],[Aktueller Zeitraum]]/Betriebsausgaben[[#This Row],[Budget]])-1),(Betriebsausgaben[[#This Row],[Aktueller Zeitraum]]/Betriebsausgaben[[#This Row],[Budget]])-1))),\"-\")","v":{"v":0,"d":"0.00%"}}]
[null,"Forschung und Entwicklung","Sonstige Ausgaben (angeben)",{"$nulls":3},{"$f":"IFERROR(IF(Umsatzerlös=0,\"-\",Betriebsausgaben[Aktueller Zeitraum]/Umsatzerlös),\"-\")","v":"-"},{"$f":"IFERROR(IF(Betriebsausgaben[[#This Row],[Vorheriger Zeitraum]]=Betriebsausgaben[[#This Row],[Aktueller Zeitraum]],0,IF(Betriebsausgaben[[#This Row],[Aktueller Zeitraum]]>Betriebsausgaben[[#This Row],[Vorheriger Zeitraum]],ABS((Betriebsausgaben[[#This Row],[Aktueller Zeitraum]]/Betriebsausgaben[[#This Row],[Vorheriger Zeitraum]])-1),IF(AND(Betriebsausgaben[[#This Row],[Aktueller Zeitraum]]<Betriebsausgaben[[#This Row],[Vorheriger Zeitraum]],Betriebsausgaben[[#This Row],[Vorheriger Zeitraum]]<0),-((Betriebsausgaben[[#This Row],[Aktueller Zeitraum]]/Betriebsausgaben[[#This Row],[Vorheriger Zeitraum]])-1),(Betriebsausgaben[[#This Row],[Aktueller Zeitraum]]/Betriebsausgaben[[#This Row],[Vorheriger Zeitraum]])-1))),\"-\")","v":{"v":0,"d":"0.00%"}},{"$f":"IFERROR(IF(Betriebsausgaben[[#This Row],[Budget]]=Betriebsausgaben[[#This Row],[Aktueller Zeitraum]],0,IF(Betriebsausgaben[[#This Row],[Aktueller Zeitraum]]>Betriebsausgaben[[#This Row],[Budget]],ABS((Betriebsausgaben[[#This Row],[Aktueller Zeitraum]]/Betriebsausgaben[[#This Row],[Budget]])-1),IF(AND(Betriebsausgaben[[#This Row],[Aktueller Zeitraum]]<Betriebsausgaben[[#This Row],[Budget]],Betriebsausgaben[[#This Row],[Budget]]<0),-((Betriebsausgaben[[#This Row],[Aktueller Zeitraum]]/Betriebsausgaben[[#This Row],[Budget]])-1),(Betriebsausgaben[[#This Row],[Aktueller Zeitraum]]/Betriebsausgaben[[#This Row],[Budget]])-1))),\"-\")","v":{"v":0,"d":"0.00%"}}]
[null,"Allgemeines und Verwaltung","Löhne und Gehälter",{"$nulls":3},{"$f":"IFERROR(IF(Umsatzerlös=0,\"-\",Betriebsausgaben[Aktueller Zeitraum]/Umsatzerlös),\"-\")","v":"-"},{"$f":"IFERROR(IF(Betriebsausgaben[[#This Row],[Vorheriger Zeitraum]]=Betriebsausgaben[[#This Row],[Aktueller Zeitraum]],0,IF(Betriebsausgaben[[#This Row],[Aktueller Zeitraum]]>Betriebsausgaben[[#This Row],[Vorheriger Zeitraum]],ABS((Betriebsausgaben[[#This Row],[Aktueller Zeitraum]]/Betriebsausgaben[[#This Row],[Vorheriger Zeitraum]])-1),IF(AND(Betriebsausgaben[[#This Row],[Aktueller Zeitraum]]<Betriebsausgaben[[#This Row],[Vorheriger Zeitraum]],Betriebsausgaben[[#This Row],[Vorheriger Zeitraum]]<0),-((Betriebsausgaben[[#This Row],[Aktueller Zeitraum]]/Betriebsausgaben[[#This Row],[Vorheriger Zeitraum]])-1),(Betriebsausgaben[[#This Row],[Aktueller Zeitraum]]/Betriebsausgaben[[#This Row],[Vorheriger Zeitraum]])-1))),\"-\")","v":{"v":0,"d":"0.00%"}},{"$f":"IFERROR(IF(Betriebsausgaben[[#This Row],[Budget]]=Betriebsausgaben[[#This Row],[Aktueller Zeitraum]],0,IF(Betriebsausgaben[[#This Row],[Aktueller Zeitraum]]>Betriebsausgaben[[#This Row],[Budget]],ABS((Betriebsausgaben[[#This Row],[Aktueller Zeitraum]]/Betriebsausgaben[[#This Row],[Budget]])-1),IF(AND(Betriebsausgaben[[#This Row],[Aktueller Zeitraum]]<Betriebsausgaben[[#This Row],[Budget]],Betriebsausgaben[[#This Row],[Budget]]<0),-((Betriebsausgaben[[#This Row],[Aktueller Zeitraum]]/Betriebsausgaben[[#This Row],[Budget]])-1),(Betriebsausgaben[[#This Row],[Aktueller Zeitraum]]/Betriebsausgaben[[#This Row],[Budget]])-1))),\"-\")","v":{"v":0,"d":"0.00%"}}]
[null,"Allgemeines und Verwaltung","Fremdleistungen",{"$nulls":3},{"$f":"IFERROR(IF(Umsatzerlös=0,\"-\",Betriebsausgaben[Aktueller Zeitraum]/Umsatzerlös),\"-\")","v":"-"},{"$f":"IFERROR(IF(Betriebsausgaben[[#This Row],[Vorheriger Zeitraum]]=Betriebsausgaben[[#This Row],[Aktueller Zeitraum]],0,IF(Betriebsausgaben[[#This Row],[Aktueller Zeitraum]]>Betriebsausgaben[[#This Row],[Vorheriger Zeitraum]],ABS((Betriebsausgaben[[#This Row],[Aktueller Zeitraum]]/Betriebsausgaben[[#This Row],[Vorheriger Zeitraum]])-1),IF(AND(Betriebsausgaben[[#This Row],[Aktueller Zeitraum]]<Betriebsausgaben[[#This Row],[Vorheriger Zeitraum]],Betriebsausgaben[[#This Row],[Vorheriger Zeitraum]]<0),-((Betriebsausgaben[[#This Row],[Aktueller Zeitraum]]/Betriebsausgaben[[#This Row],[Vorheriger Zeitraum]])-1),(Betriebsausgaben[[#This Row],[Aktueller Zeitraum]]/Betriebsausgaben[[#This Row],[Vorheriger Zeitraum]])-1))),\"-\")","v":{"v":0,"d":"0.00%"}},{"$f":"IFERROR(IF(Betriebsausgaben[[#This Row],[Budget]]=Betriebsausgaben[[#This Row],[Aktueller Zeitraum]],0,IF(Betriebsausgaben[[#This Row],[Aktueller Zeitraum]]>Betriebsausgaben[[#This Row],[Budget]],ABS((Betriebsausgaben[[#This Row],[Aktueller Zeitraum]]/Betriebsausgaben[[#This Row],[Budget]])-1),IF(AND(Betriebsausgaben[[#This Row],[Aktueller Zeitraum]]<Betriebsausgaben[[#This Row],[Budget]],Betriebsausgaben[[#This Row],[Budget]]<0),-((Betriebsausgaben[[#This Row],[Aktueller Zeitraum]]/Betriebsausgaben[[#This Row],[Budget]])-1),(Betriebsausgaben[[#This Row],[Aktueller Zeitraum]]/Betriebsausgaben[[#This Row],[Budget]])-1))),\"-\")","v":{"v":0,"d":"0.00%"}}]
[null,"Allgemeines und Verwaltung","Betriebsmittel",{"$nulls":3},{"$f":"IFERROR(IF(Umsatzerlös=0,\"-\",Betriebsausgaben[Aktueller Zeitraum]/Umsatzerlös),\"-\")","v":"-"},{"$f":"IFERROR(IF(Betriebsausgaben[[#This Row],[Vorheriger Zeitraum]]=Betriebsausgaben[[#This Row],[Aktueller Zeitraum]],0,IF(Betriebsausgaben[[#This Row],[Aktueller Zeitraum]]>Betriebsausgaben[[#This Row],[Vorheriger Zeitraum]],ABS((Betriebsausgaben[[#This Row],[Aktueller Zeitraum]]/Betriebsausgaben[[#This Row],[Vorheriger Zeitraum]])-1),IF(AND(Betriebsausgaben[[#This Row],[Aktueller Zeitraum]]<Betriebsausgaben[[#This Row],[Vorheriger Zeitraum]],Betriebsausgaben[[#This Row],[Vorheriger Zeitraum]]<0),-((Betriebsausgaben[[#This Row],[Aktueller Zeitraum]]/Betriebsausgaben[[#This Row],[Vorheriger Zeitraum]])-1),(Betriebsausgaben[[#This Row],[Aktueller Zeitraum]]/Betriebsausgaben[[#This Row],[Vorheriger Zeitraum]])-1))),\"-\")","v":{"v":0,"d":"0.00%"}},{"$f":"IFERROR(IF(Betriebsausgaben[[#This Row],[Budget]]=Betriebsausgaben[[#This Row],[Aktueller Zeitraum]],0,IF(Betriebsausgaben[[#This Row],[Aktueller Zeitraum]]>Betriebsausgaben[[#This Row],[Budget]],ABS((Betriebsausgaben[[#This Row],[Aktueller Zeitraum]]/Betriebsausgaben[[#This Row],[Budget]])-1),IF(AND(Betriebsausgaben[[#This Row],[Aktueller Zeitraum]]<Betriebsausgaben[[#This Row],[Budget]],Betriebsausgaben[[#This Row],[Budget]]<0),-((Betriebsausgaben[[#This Row],[Aktueller Zeitraum]]/Betriebsausgaben[[#This Row],[Budget]])-1),(Betriebsausgaben[[#This Row],[Aktueller Zeitraum]]/Betriebsausgaben[[#This Row],[Budget]])-1))),\"-\")","v":{"v":0,"d":"0.00%"}}]
[null,"Allgemeines und Verwaltung","Verpflegung und Bewirtung",{"$nulls":3},{"$f":"IFERROR(IF(Umsatzerlös=0,\"-\",Betriebsausgaben[Aktueller Zeitraum]/Umsatzerlös),\"-\")","v":"-"},{"$f":"IFERROR(IF(Betriebsausgaben[[#This Row],[Vorheriger Zeitraum]]=Betriebsausgaben[[#This Row],[Aktueller Zeitraum]],0,IF(Betriebsausgaben[[#This Row],[Aktueller Zeitraum]]>Betriebsausgaben[[#This Row],[Vorheriger Zeitraum]],ABS((Betriebsausgaben[[#This Row],[Aktueller Zeitraum]]/Betriebsausgaben[[#This Row],[Vorheriger Zeitraum]])-1),IF(AND(Betriebsausgaben[[#This Row],[Aktueller Zeitraum]]<Betriebsausgaben[[#This Row],[Vorheriger Zeitraum]],Betriebsausgaben[[#This Row],[Vorheriger Zeitraum]]<0),-((Betriebsausgaben[[#This Row],[Aktueller Zeitraum]]/Betriebsausgaben[[#This Row],[Vorheriger Zeitraum]])-1),(Betriebsausgaben[[#This Row],[Aktueller Zeitraum]]/Betriebsausgaben[[#This Row],[Vorheriger Zeitraum]])-1))),\"-\")","v":{"v":0,"d":"0.00%"}},{"$f":"IFERROR(IF(Betriebsausgaben[[#This Row],[Budget]]=Betriebsausgaben[[#This Row],[Aktueller Zeitraum]],0,IF(Betriebsausgaben[[#This Row],[Aktueller Zeitraum]]>Betriebsausgaben[[#This Row],[Budget]],ABS((Betriebsausgaben[[#This Row],[Aktueller Zeitraum]]/Betriebsausgaben[[#This Row],[Budget]])-1),IF(AND(Betriebsausgaben[[#This Row],[Aktueller Zeitraum]]<Betriebsausgaben[[#This Row],[Budget]],Betriebsausgaben[[#This Row],[Budget]]<0),-((Betriebsausgaben[[#This Row],[Aktueller Zeitraum]]/Betriebsausgaben[[#This Row],[Budget]])-1),(Betriebsausgaben[[#This Row],[Aktueller Zeitraum]]/Betriebsausgaben[[#This Row],[Budget]])-1))),\"-\")","v":{"v":0,"d":"0.00%"}}]
[null,"Allgemeines und Verwaltung","Miete",{"$nulls":3},{"$f":"IFERROR(IF(Umsatzerlös=0,\"-\",Betriebsausgaben[Aktueller Zeitraum]/Umsatzerlös),\"-\")","v":"-"},{"$f":"IFERROR(IF(Betriebsausgaben[[#This Row],[Vorheriger Zeitraum]]=Betriebsausgaben[[#This Row],[Aktueller Zeitraum]],0,IF(Betriebsausgaben[[#This Row],[Aktueller Zeitraum]]>Betriebsausgaben[[#This Row],[Vorheriger Zeitraum]],ABS((Betriebsausgaben[[#This Row],[Aktueller Zeitraum]]/Betriebsausgaben[[#This Row],[Vorheriger Zeitraum]])-1),IF(AND(Betriebsausgaben[[#This Row],[Aktueller Zeitraum]]<Betriebsausgaben[[#This Row],[Vorheriger Zeitraum]],Betriebsausgaben[[#This Row],[Vorheriger Zeitraum]]<0),-((Betriebsausgaben[[#This Row],[Aktueller Zeitraum]]/Betriebsausgaben[[#This Row],[Vorheriger Zeitraum]])-1),(Betriebsausgaben[[#This Row],[Aktueller Zeitraum]]/Betriebsausgaben[[#This Row],[Vorheriger Zeitraum]])-1))),\"-\")","v":{"v":0,"d":"0.00%"}},{"$f":"IFERROR(IF(Betriebsausgaben[[#This Row],[Budget]]=Betriebsausgaben[[#This Row],[Aktueller Zeitraum]],0,IF(Betriebsausgaben[[#This Row],[Aktueller Zeitraum]]>Betriebsausgaben[[#This Row],[Budget]],ABS((Betriebsausgaben[[#This Row],[Aktueller Zeitraum]]/Betriebsausgaben[[#This Row],[Budget]])-1),IF(AND(Betriebsausgaben[[#This Row],[Aktueller Zeitraum]]<Betriebsausgaben[[#This Row],[Budget]],Betriebsausgaben[[#This Row],[Budget]]<0),-((Betriebsausgaben[[#This Row],[Aktueller Zeitraum]]/Betriebsausgaben[[#This Row],[Budget]])-1),(Betriebsausgaben[[#This Row],[Aktueller Zeitraum]]/Betriebsausgaben[[#This Row],[Budget]])-1))),\"-\")","v":{"v":0,"d":"0.00%"}}]
[null,"Allgemeines und Verwaltung","Telefon",{"$nulls":3},{"$f":"IFERROR(IF(Umsatzerlös=0,\"-\",Betriebsausgaben[Aktueller Zeitraum]/Umsatzerlös),\"-\")","v":"-"},{"$f":"IFERROR(IF(Betriebsausgaben[[#This Row],[Vorheriger Zeitraum]]=Betriebsausgaben[[#This Row],[Aktueller Zeitraum]],0,IF(Betriebsausgaben[[#This Row],[Aktueller Zeitraum]]>Betriebsausgaben[[#This Row],[Vorheriger Zeitraum]],ABS((Betriebsausgaben[[#This Row],[Aktueller Zeitraum]]/Betriebsausgaben[[#This Row],[Vorheriger Zeitraum]])-1),IF(AND(Betriebsausgaben[[#This Row],[Aktueller Zeitraum]]<Betriebsausgaben[[#This Row],[Vorheriger Zeitraum]],Betriebsausgaben[[#This Row],[Vorheriger Zeitraum]]<0),-((Betriebsausgaben[[#This Row],[Aktueller Zeitraum]]/Betriebsausgaben[[#This Row],[Vorheriger Zeitraum]])-1),(Betriebsausgaben[[#This Row],[Aktueller Zeitraum]]/Betriebsausgaben[[#This Row],[Vorheriger Zeitraum]])-1))),\"-\")","v":{"v":0,"d":"0.00%"}},{"$f":"IFERROR(IF(Betriebsausgaben[[#This Row],[Budget]]=Betriebsausgaben[[#This Row],[Aktueller Zeitraum]],0,IF(Betriebsausgaben[[#This Row],[Aktueller Zeitraum]]>Betriebsausgaben[[#This Row],[Budget]],ABS((Betriebsausgaben[[#This Row],[Aktueller Zeitraum]]/Betriebsausgaben[[#This Row],[Budget]])-1),IF(AND(Betriebsausgaben[[#This Row],[Aktueller Zeitraum]]<Betriebsausgaben[[#This Row],[Budget]],Betriebsausgaben[[#This Row],[Budget]]<0),-((Betriebsausgaben[[#This Row],[Aktueller Zeitraum]]/Betriebsausgaben[[#This Row],[Budget]])-1),(Betriebsausgaben[[#This Row],[Aktueller Zeitraum]]/Betriebsausgaben[[#This Row],[Budget]])-1))),\"-\")","v":{"v":0,"d":"0.00%"}}]
[null,"Allgemeines und Verwaltung","Nebenkosten",{"$nulls":3},{"$f":"IFERROR(IF(Umsatzerlös=0,\"-\",Betriebsausgaben[Aktueller Zeitraum]/Umsatzerlös),\"-\")","v":"-"},{"$f":"IFERROR(IF(Betriebsausgaben[[#This Row],[Vorheriger Zeitraum]]=Betriebsausgaben[[#This Row],[Aktueller Zeitraum]],0,IF(Betriebsausgaben[[#This Row],[Aktueller Zeitraum]]>Betriebsausgaben[[#This Row],[Vorheriger Zeitraum]],ABS((Betriebsausgaben[[#This Row],[Aktueller Zeitraum]]/Betriebsausgaben[[#This Row],[Vorheriger Zeitraum]])-1),IF(AND(Betriebsausgaben[[#This Row],[Aktueller Zeitraum]]<Betriebsausgaben[[#This Row],[Vorheriger Zeitraum]],Betriebsausgaben[[#This Row],[Vorheriger Zeitraum]]<0),-((Betriebsausgaben[[#This Row],[Aktueller Zeitraum]]/Betriebsausgaben[[#This Row],[Vorheriger Zeitraum]])-1),(Betriebsausgaben[[#This Row],[Aktueller Zeitraum]]/Betriebsausgaben[[#This Row],[Vorheriger Zeitraum]])-1))),\"-\")","v":{"v":0,"d":"0.00%"}},{"$f":"IFERROR(IF(Betriebsausgaben[[#This Row],[Budget]]=Betriebsausgaben[[#This Row],[Aktueller Zeitraum]],0,IF(Betriebsausgaben[[#This Row],[Aktueller Zeitraum]]>Betriebsausgaben[[#This Row],[Budget]],ABS((Betriebsausgaben[[#This Row],[Aktueller Zeitraum]]/Betriebsausgaben[[#This Row],[Budget]])-1),IF(AND(Betriebsausgaben[[#This Row],[Aktueller Zeitraum]]<Betriebsausgaben[[#This Row],[Budget]],Betriebsausgaben[[#This Row],[Budget]]<0),-((Betriebsausgaben[[#This Row],[Aktueller Zeitraum]]/Betriebsausgaben[[#This Row],[Budget]])-1),(Betriebsausgaben[[#This Row],[Aktueller Zeitraum]]/Betriebsausgaben[[#This Row],[Budget]])-1))),\"-\")","v":{"v":0,"d":"0.00%"}}]
[null,"Allgemeines und Verwaltung","Abschreibung",{"$nulls":3},{"$f":"IFERROR(IF(Umsatzerlös=0,\"-\",Betriebsausgaben[Aktueller Zeitraum]/Umsatzerlös),\"-\")","v":"-"},{"$f":"IFERROR(IF(Betriebsausgaben[[#This Row],[Vorheriger Zeitraum]]=Betriebsausgaben[[#This Row],[Aktueller Zeitraum]],0,IF(Betriebsausgaben[[#This Row],[Aktueller Zeitraum]]>Betriebsausgaben[[#This Row],[Vorheriger Zeitraum]],ABS((Betriebsausgaben[[#This Row],[Aktueller Zeitraum]]/Betriebsausgaben[[#This Row],[Vorheriger Zeitraum]])-1),IF(AND(Betriebsausgaben[[#This Row],[Aktueller Zeitraum]]<Betriebsausgaben[[#This Row],[Vorheriger Zeitraum]],Betriebsausgaben[[#This Row],[Vorheriger Zeitraum]]<0),-((Betriebsausgaben[[#This Row],[Aktueller Zeitraum]]/Betriebsausgaben[[#This Row],[Vorheriger Zeitraum]])-1),(Betriebsausgaben[[#This Row],[Aktueller Zeitraum]]/Betriebsausgaben[[#This Row],[Vorheriger Zeitraum]])-1))),\"-\")","v":{"v":0,"d":"0.00%"}},{"$f":"IFERROR(IF(Betriebsausgaben[[#This Row],[Budget]]=Betriebsausgaben[[#This Row],[Aktueller Zeitraum]],0,IF(Betriebsausgaben[[#This Row],[Aktueller Zeitraum]]>Betriebsausgaben[[#This Row],[Budget]],ABS((Betriebsausgaben[[#This Row],[Aktueller Zeitraum]]/Betriebsausgaben[[#This Row],[Budget]])-1),IF(AND(Betriebsausgaben[[#This Row],[Aktueller Zeitraum]]<Betriebsausgaben[[#This Row],[Budget]],Betriebsausgaben[[#This Row],[Budget]]<0),-((Betriebsausgaben[[#This Row],[Aktueller Zeitraum]]/Betriebsausgaben[[#This Row],[Budget]])-1),(Betriebsausgaben[[#This Row],[Aktueller Zeitraum]]/Betriebsausgaben[[#This Row],[Budget]])-1))),\"-\")","v":{"v":0,"d":"0.00%"}}]
[null,"Allgemeines und Verwaltung","Versicherungen",{"$nulls":3},{"$f":"IFERROR(IF(Umsatzerlös=0,\"-\",Betriebsausgaben[Aktueller Zeitraum]/Umsatzerlös),\"-\")","v":"-"},{"$f":"IFERROR(IF(Betriebsausgaben[[#This Row],[Vorheriger Zeitraum]]=Betriebsausgaben[[#This Row],[Aktueller Zeitraum]],0,IF(Betriebsausgaben[[#This Row],[Aktueller Zeitraum]]>Betriebsausgaben[[#This Row],[Vorheriger Zeitraum]],ABS((Betriebsausgaben[[#This Row],[Aktueller Zeitraum]]/Betriebsausgaben[[#This Row],[Vorheriger Zeitraum]])-1),IF(AND(Betriebsausgaben[[#This Row],[Aktueller Zeitraum]]<Betriebsausgaben[[#This Row],[Vorheriger Zeitraum]],Betriebsausgaben[[#This Row],[Vorheriger Zeitraum]]<0),-((Betriebsausgaben[[#This Row],[Aktueller Zeitraum]]/Betriebsausgaben[[#This Row],[Vorheriger Zeitraum]])-1),(Betriebsausgaben[[#This Row],[Aktueller Zeitraum]]/Betriebsausgaben[[#This Row],[Vorheriger Zeitraum]])-1))),\"-\")","v":{"v":0,"d":"0.00%"}},{"$f":"IFERROR(IF(Betriebsausgaben[[#This Row],[Budget]]=Betriebsausgaben[[#This Row],[Aktueller Zeitraum]],0,IF(Betriebsausgaben[[#This Row],[Aktueller Zeitraum]]>Betriebsausgaben[[#This Row],[Budget]],ABS((Betriebsausgaben[[#This Row],[Aktueller Zeitraum]]/Betriebsausgaben[[#This Row],[Budget]])-1),IF(AND(Betriebsausgaben[[#This Row],[Aktueller Zeitraum]]<Betriebsausgaben[[#This Row],[Budget]],Betriebsausgaben[[#This Row],[Budget]]<0),-((Betriebsausgaben[[#This Row],[Aktueller Zeitraum]]/Betriebsausgaben[[#This Row],[Budget]])-1),(Betriebsausgaben[[#This Row],[Aktueller Zeitraum]]/Betriebsausgaben[[#This Row],[Budget]])-1))),\"-\")","v":{"v":0,"d":"0.00%"}}]
[null,"Allgemeines und Verwaltung","Reparaturen und Wartung",{"$nulls":3},{"$f":"IFERROR(IF(Umsatzerlös=0,\"-\",Betriebsausgaben[Aktueller Zeitraum]/Umsatzerlös),\"-\")","v":"-"},{"$f":"IFERROR(IF(Betriebsausgaben[[#This Row],[Vorheriger Zeitraum]]=Betriebsausgaben[[#This Row],[Aktueller Zeitraum]],0,IF(Betriebsausgaben[[#This Row],[Aktueller Zeitraum]]>Betriebsausgaben[[#This Row],[Vorheriger Zeitraum]],ABS((Betriebsausgaben[[#This Row],[Aktueller Zeitraum]]/Betriebsausgaben[[#This Row],[Vorheriger Zeitraum]])-1),IF(AND(Betriebsausgaben[[#This Row],[Aktueller Zeitraum]]<Betriebsausgaben[[#This Row],[Vorheriger Zeitraum]],Betriebsausgaben[[#This Row],[Vorheriger Zeitraum]]<0),-((Betriebsausgaben[[#This Row],[Aktueller Zeitraum]]/Betriebsausgaben[[#This Row],[Vorheriger Zeitraum]])-1),(Betriebsausgaben[[#This Row],[Aktueller Zeitraum]]/Betriebsausgaben[[#This Row],[Vorheriger Zeitraum]])-1))),\"-\")","v":{"v":0,"d":"0.00%"}},{"$f":"IFERROR(IF(Betriebsausgaben[[#This Row],[Budget]]=Betriebsausgaben[[#This Row],[Aktueller Zeitraum]],0,IF(Betriebsausgaben[[#This Row],[Aktueller Zeitraum]]>Betriebsausgaben[[#This Row],[Budget]],ABS((Betriebsausgaben[[#This Row],[Aktueller Zeitraum]]/Betriebsausgaben[[#This Row],[Budget]])-1),IF(AND(Betriebsausgaben[[#This Row],[Aktueller Zeitraum]]<Betriebsausgaben[[#This Row],[Budget]],Betriebsausgaben[[#This Row],[Budget]]<0),-((Betriebsausgaben[[#This Row],[Aktueller Zeitraum]]/Betriebsausgaben[[#This Row],[Budget]])-1),(Betriebsausgaben[[#This Row],[Aktueller Zeitraum]]/Betriebsausgaben[[#This Row],[Budget]])-1))),\"-\")","v":{"v":0,"d":"0.00%"}}]
[null,"Allgemeines und Verwaltung","Sonstige Ausgaben (angeben)",{"$nulls":3},{"$f":"IFERROR(IF(Umsatzerlös=0,\"-\",Betriebsausgaben[Aktueller Zeitraum]/Umsatzerlös),\"-\")","v":"-"},{"$f":"IFERROR(IF(Betriebsausgaben[[#This Row],[Vorheriger Zeitraum]]=Betriebsausgaben[[#This Row],[Aktueller Zeitraum]],0,IF(Betriebsausgaben[[#This Row],[Aktueller Zeitraum]]>Betriebsausgaben[[#This Row],[Vorheriger Zeitraum]],ABS((Betriebsausgaben[[#This Row],[Aktueller Zeitraum]]/Betriebsausgaben[[#This Row],[Vorheriger Zeitraum]])-1),IF(AND(Betriebsausgaben[[#This Row],[Aktueller Zeitraum]]<Betriebsausgaben[[#This Row],[Vorheriger Zeitraum]],Betriebsausgaben[[#This Row],[Vorheriger Zeitraum]]<0),-((Betriebsausgaben[[#This Row],[Aktueller Zeitraum]]/Betriebsausgaben[[#This Row],[Vorheriger Zeitraum]])-1),(Betriebsausgaben[[#This Row],[Aktueller Zeitraum]]/Betriebsausgaben[[#This Row],[Vorheriger Zeitraum]])-1))),\"-\")","v":{"v":0,"d":"0.00%"}},{"$f":"IFERROR(IF(Betriebsausgaben[[#This Row],[Budget]]=Betriebsausgaben[[#This Row],[Aktueller Zeitraum]],0,IF(Betriebsausgaben[[#This Row],[Aktueller Zeitraum]]>Betriebsausgaben[[#This Row],[Budget]],ABS((Betriebsausgaben[[#This Row],[Aktueller Zeitraum]]/Betriebsausgaben[[#This Row],[Budget]])-1),IF(AND(Betriebsausgaben[[#This Row],[Aktueller Zeitraum]]<Betriebsausgaben[[#This Row],[Budget]],Betriebsausgaben[[#This Row],[Budget]]<0),-((Betriebsausgaben[[#This Row],[Aktueller Zeitraum]]/Betriebsausgaben[[#This Row],[Budget]])-1),(Betriebsausgaben[[#This Row],[Aktueller Zeitraum]]/Betriebsausgaben[[#This Row],[Budget]])-1))),\"-\")","v":{"v":0,"d":"0.00%"}}]
[null,"Allgemeines und Verwaltung","Sonstige Ausgaben (angeben)",{"$nulls":3},{"$f":"IFERROR(IF(Umsatzerlös=0,\"-\",Betriebsausgaben[Aktueller Zeitraum]/Umsatzerlös),\"-\")","v":"-"},{"$f":"IFERROR(IF(Betriebsausgaben[[#This Row],[Vorheriger Zeitraum]]=Betriebsausgaben[[#This Row],[Aktueller Zeitraum]],0,IF(Betriebsausgaben[[#This Row],[Aktueller Zeitraum]]>Betriebsausgaben[[#This Row],[Vorheriger Zeitraum]],ABS((Betriebsausgaben[[#This Row],[Aktueller Zeitraum]]/Betriebsausgaben[[#This Row],[Vorheriger Zeitraum]])-1),IF(AND(Betriebsausgaben[[#This Row],[Aktueller Zeitraum]]<Betriebsausgaben[[#This Row],[Vorheriger Zeitraum]],Betriebsausgaben[[#This Row],[Vorheriger Zeitraum]]<0),-((Betriebsausgaben[[#This Row],[Aktueller Zeitraum]]/Betriebsausgaben[[#This Row],[Vorheriger Zeitraum]])-1),(Betriebsausgaben[[#This Row],[Aktueller Zeitraum]]/Betriebsausgaben[[#This Row],[Vorheriger Zeitraum]])-1))),\"-\")","v":{"v":0,"d":"0.00%"}},{"$f":"IFERROR(IF(Betriebsausgaben[[#This Row],[Budget]]=Betriebsausgaben[[#This Row],[Aktueller Zeitraum]],0,IF(Betriebsausgaben[[#This Row],[Aktueller Zeitraum]]>Betriebsausgaben[[#This Row],[Budget]],ABS((Betriebsausgaben[[#This Row],[Aktueller Zeitraum]]/Betriebsausgaben[[#This Row],[Budget]])-1),IF(AND(Betriebsausgaben[[#This Row],[Aktueller Zeitraum]]<Betriebsausgaben[[#This Row],[Budget]],Betriebsausgaben[[#This Row],[Budget]]<0),-((Betriebsausgaben[[#This Row],[Aktueller Zeitraum]]/Betriebsausgaben[[#This Row],[Budget]])-1),(Betriebsausgaben[[#This Row],[Aktueller Zeitraum]]/Betriebsausgaben[[#This Row],[Budget]])-1))),\"-\")","v":{"v":0,"d":"0.00%"}}]
[null,"Summe Betriebsausgaben",null,{"$f":"SUBTOTAL(109,Betriebsausgaben[Vorheriger Zeitraum])","v":0},{"$f":"SUBTOTAL(109,Betriebsausgaben[Budget])","v":0},{"$f":"SUBTOTAL(109,Betriebsausgaben[Aktueller Zeitraum])","v":0},{"$f":"SUBTOTAL(109,Betriebsausgaben[Aktueller Zeitraum als % vom Umsatz])","v":{"v":0,"d":"0.00%"}},{"$f":"SUBTOTAL(109,Betriebsausgaben[% Änderung gegenüber vorherigem Zeitraum])","v":{"v":0,"d":"0.00%"}},{"$f":"SUBTOTAL(109,Betriebsausgaben[% Änderung gegenüber \nBudget])","v":{"v":0,"d":"0.00%"}}]

{"sheet":"Steuern","index":4,"n_rows":10,"n_cols":9,"rows_kept":10,"merged":[[0,7,2,8]]}
[null,{"$f":"Arbeitsmappe_Titel","v":"Gewinn- und Verlustrechnung"}]
[null,{"$f":"Firmenname","v":"Firmenname"},"Angabe in Tausendern"]
[null,"Steuern",{"$f":"IFERROR(Steuern[[#Totals],[Aktueller Zeitraum]],\"-\")","v":0}]
[null,"Art","Beschreibung","Vorheriger Zeitraum","Budget","Aktueller Zeitraum","Aktueller Zeitraum als % vom Umsatz","% Änderung gegenüber vorherigem Zeitraum","% Änderung gegenüber \nBudget"]
[null,"Steuern","Einkommensteuern",{"$nulls":3},{"$f":"IFERROR(IF(Umsatzerlös=0,\"-\",Steuern[Aktueller Zeitraum]/Umsatzerlös),\"-\")","v":"-"},{"$f":"IFERROR(IF(Steuern[[#This Row],[Vorheriger Zeitraum]]=Steuern[[#This Row],[Aktueller Zeitraum]],0,IF(Steuern[[#This Row],[Aktueller Zeitraum]]>Steuern[[#This Row],[Vorheriger Zeitraum]],ABS((Steuern[[#This Row],[Aktueller Zeitraum]]/Steuern[[#This Row],[Vorheriger Zeitraum]])-1),IF(AND(Steuern[[#This Row],[Aktueller Zeitraum]]<Steuern[[#This Row],[Vorheriger Zeitraum]],Steuern[[#This Row],[Vorheriger Zeitraum]]<0),-((Steuern[[#This Row],[Aktueller Zeitraum]]/Steuern[[#This Row],[Vorheriger Zeitraum]])-1),(Steuern[[#This Row],[Aktueller Zeitraum]]/Steuern[[#This Row],[Vorheriger Zeitraum]])-1))),\"-\")","v":{"v":0,"d":"0.00%"}},{"$f":"IFERROR(IF(Steuern[[#This Row],[Budget]]=Steuern[[#This Row],[Aktueller Zeitraum]],0,IF(Steuern[[#This Row],[Aktueller Zeitraum]]>Steuern[[#This Row],[Budget]],ABS((Steuern[[#This Row],[Aktueller Zeitraum]]/Steuern[[#This Row],[Budget]])-1),IF(AND(Steuern[[#This Row],[Aktueller Zeitraum]]<Steuern[[#This Row],[Budget]],Steuern[[#This Row],[Budget]]<0),-((Steuern[[#This Row],[Aktueller Zeitraum]]/Steuern[[#This Row],[Budget]])-1),(Steuern[[#This Row],[Aktueller Zeitraum]]/Steuern[[#This Row],[Budget]])-1))),\"-\")","v":{"v":0,"d":"0.00%"}}]
[null,"Steuern","Lohnsteuern",{"$nulls":3},{"$f":"IFERROR(IF(Umsatzerlös=0,\"-\",Steuern[Aktueller Zeitraum]/Umsatzerlös),\"-\")","v":"-"},{"$f":"IFERROR(IF(Steuern[[#This Row],[Vorheriger Zeitraum]]=Steuern[[#This Row],[Aktueller Zeitraum]],0,IF(Steuern[[#This Row],[Aktueller Zeitraum]]>Steuern[[#This Row],[Vorheriger Zeitraum]],ABS((Steuern[[#This Row],[Aktueller Zeitraum]]/Steuern[[#This Row],[Vorheriger Zeitraum]])-1),IF(AND(Steuern[[#This Row],[Aktueller Zeitraum]]<Steuern[[#This Row],[Vorheriger Zeitraum]],Steuern[[#This Row],[Vorheriger Zeitraum]]<0),-((Steuern[[#This Row],[Aktueller Zeitraum]]/Steuern[[#This Row],[Vorheriger Zeitraum]])-1),(Steuern[[#This Row],[Aktueller Zeitraum]]/Steuern[[#This Row],[Vorheriger Zeitraum]])-1))),\"-\")","v":{"v":0,"d":"0.00%"}},{"$f":"IFERROR(IF(Steuern[[#This Row],[Budget]]=Steuern[[#This Row],[Aktueller Zeitraum]],0,IF(Steuern[[#This Row],[Aktueller Zeitraum]]>Steuern[[#This Row],[Budget]],ABS((Steuern[[#This Row],[Aktueller Zeitraum]]/Steuern[[#This Row],[Budget]])-1),IF(AND(Steuern[[#This Row],[Aktueller Zeitraum]]<Steuern[[#This Row],[Budget]],Steuern[[#This Row],[Budget]]<0),-((Steuern[[#This Row],[Aktueller Zeitraum]]/Steuern[[#This Row],[Budget]])-1),(Steuern[[#This Row],[Aktueller Zeitraum]]/Steuern[[#This Row],[Budget]])-1))),\"-\")","v":{"v":0,"d":"0.00%"}}]
[null,"Steuern","Grundsteuern",{"$nulls":3},{"$f":"IFERROR(IF(Umsatzerlös=0,\"-\",Steuern[Aktueller Zeitraum]/Umsatzerlös),\"-\")","v":"-"},{"$f":"IFERROR(IF(Steuern[[#This Row],[Vorheriger Zeitraum]]=Steuern[[#This Row],[Aktueller Zeitraum]],0,IF(Steuern[[#This Row],[Aktueller Zeitraum]]>Steuern[[#This Row],[Vorheriger Zeitraum]],ABS((Steuern[[#This Row],[Aktueller Zeitraum]]/Steuern[[#This Row],[Vorheriger Zeitraum]])-1),IF(AND(Steuern[[#This Row],[Aktueller Zeitraum]]<Steuern[[#This Row],[Vorheriger Zeitraum]],Steuern[[#This Row],[Vorheriger Zeitraum]]<0),-((Steuern[[#This Row],[Aktueller Zeitraum]]/Steuern[[#This Row],[Vorheriger Zeitraum]])-1),(Steuern[[#This Row],[Aktueller Zeitraum]]/Steuern[[#This Row],[Vorheriger Zeitraum]])-1))),\"-\")","v":{"v":0,"d":"0.00%"}},{"$f":"IFERROR(IF(Steuern[[#This Row],[Budget]]=Steuern[[#This Row],[Aktueller Zeitraum]],0,IF(Steuern[[#This Row],[Aktueller Zeitraum]]>Steuern[[#This Row],[Budget]],ABS((Steuern[[#This Row],[Aktueller Zeitraum]]/Steuern[[#This Row],[Budget]])-1),IF(AND(Steuern[[#This Row],[Aktueller Zeitraum]]<Steuern[[#This Row],[Budget]],Steuern[[#This Row],[Budget]]<0),-((Steuern[[#This Row],[Aktueller Zeitraum]]/Steuern[[#This Row],[Budget]])-1),(Steuern[[#This Row],[Aktueller Zeitraum]]/Steuern[[#This Row],[Budget]])-1))),\"-\")","v":{"v":0,"d":"0.00%"}}]
[null,"Steuern","Sonstige Steuern (angeben)",{"$nulls":3},{"$f":"IFERROR(IF(Umsatzerlös=0,\"-\",Steuern[Aktueller Zeitraum]/Umsatzerlös),\"-\")","v":"-"},{"$f":"IFERROR(IF(Steuern[[#This Row],[Vorheriger Zeitraum]]=Steuern[[#This Row],[Aktueller Zeitraum]],0,IF(Steuern[[#This Row],[Aktueller Zeitraum]]>Steuern[[#This Row],[Vorheriger Zeitraum]],ABS((Steuern[[#This Row],[Aktueller Zeitraum]]/Steuern[[#This Row],[Vorheriger Zeitraum]])-1),IF(AND(Steuern[[#This Row],[Aktueller Zeitraum]]<Steuern[[#This Row],[Vorheriger Zeitraum]],Steuern[[#This Row],[Vorheriger Zeitraum]]<0),-((Steuern[[#This Row],[Aktueller Zeitraum]]/Steuern[[#This Row],[Vorheriger Zeitraum]])-1),(Steuern[[#This Row],[Aktueller Zeitraum]]/Steuern[[#This Row],[Vorheriger Zeitraum]])-1))),\"-\")","v":{"v":0,"d":"0.00%"}},{"$f":"IFERROR(IF(Steuern[[#This Row],[Budget]]=Steuern[[#This Row],[Aktueller Zeitraum]],0,IF(Steuern[[#This Row],[Aktueller Zeitraum]]>Steuern[[#This Row],[Budget]],ABS((Steuern[[#This Row],[Aktueller Zeitraum]]/Steuern[[#This Row],[Budget]])-1),IF(AND(Steuern[[#This Row],[Aktueller Zeitraum]]<Steuern[[#This Row],[Budget]],Steuern[[#This Row],[Budget]]<0),-((Steuern[[#This Row],[Aktueller Zeitraum]]/Steuern[[#This Row],[Budget]])-1),(Steuern[[#This Row],[Aktueller Zeitraum]]/Steuern[[#This Row],[Budget]])-1))),\"-\")","v":{"v":0,"d":"0.00%"}}]
[null,"Steuern","Sonstige Steuern (angeben)",{"$nulls":3},{"$f":"IFERROR(IF(Umsatzerlös=0,\"-\",Steuern[Aktueller Zeitraum]/Umsatzerlös),\"-\")","v":"-"},{"$f":"IFERROR(IF(Steuern[[#This Row],[Vorheriger Zeitraum]]=Steuern[[#This Row],[Aktueller Zeitraum]],0,IF(Steuern[[#This Row],[Aktueller Zeitraum]]>Steuern[[#This Row],[Vorheriger Zeitraum]],ABS((Steuern[[#This Row],[Aktueller Zeitraum]]/Steuern[[#This Row],[Vorheriger Zeitraum]])-1),IF(AND(Steuern[[#This Row],[Aktueller Zeitraum]]<Steuern[[#This Row],[Vorheriger Zeitraum]],Steuern[[#This Row],[Vorheriger Zeitraum]]<0),-((Steuern[[#This Row],[Aktueller Zeitraum]]/Steuern[[#This Row],[Vorheriger Zeitraum]])-1),(Steuern[[#This Row],[Aktueller Zeitraum]]/Steuern[[#This Row],[Vorheriger Zeitraum]])-1))),\"-\")","v":{"v":0,"d":"0.00%"}},{"$f":"IFERROR(IF(Steuern[[#This Row],[Budget]]=Steuern[[#This Row],[Aktueller Zeitraum]],0,IF(Steuern[[#This Row],[Aktueller Zeitraum]]>Steuern[[#This Row],[Budget]],ABS((Steuern[[#This Row],[Aktueller Zeitraum]]/Steuern[[#This Row],[Budget]])-1),IF(AND(Steuern[[#This Row],[Aktueller Zeitraum]]<Steuern[[#This Row],[Budget]],Steuern[[#This Row],[Budget]]<0),-((Steuern[[#This Row],[Aktueller Zeitraum]]/Steuern[[#This Row],[Budget]])-1),(Steuern[[#This Row],[Aktueller Zeitraum]]/Steuern[[#This Row],[Budget]])-1))),\"-\")","v":{"v":0,"d":"0.00%"}}]
[null,"Steuern gesamt",null,{"$f":"SUBTOTAL(109,Steuern[Vorheriger Zeitraum])","v":0},{"$f":"SUBTOTAL(109,Steuern[Budget])","v":0},{"$f":"SUBTOTAL(109,Steuern[Aktueller Zeitraum])","v":0},{"$f":"IFERROR(SUBTOTAL(109,Steuern[Aktueller Zeitraum als % vom Umsatz]),\"-\")","v":{"v":0,"d":"0.00%"}},{"$f":"SUBTOTAL(109,Steuern[% Änderung gegenüber vorherigem Zeitraum])","v":{"v":0,"d":"0.00%"}},{"$f":"SUBTOTAL(109,Steuern[% Änderung gegenüber \nBudget])","v":{"v":0,"d":"0.00%"}}]

{"sheet":"Kategorien","index":5,"n_rows":8,"n_cols":2,"rows_kept":8}
[null,"Kategorien"]
[null,"Umsatzerlös"]
[null,"Vertriebskosten"]
[null,"Einkünfte"]
[null,"Vertrieb und Marketing"]
[null,"Forschung und Entwicklung"]
[null,"Allgemeines und Verwaltung"]
[null,"Steuern"]